bitfinex/quotes_SOLUSD_20241113
["timestamp","ask_amount","ask_price","bid_price","bid_amount"]
[1731483761982,37.93843298,203.52,203.43,47.76973298]
[1731483762190,37.93843298,203.5,203.43,9.8313]
[1731483762389,4.9137,203.51,203.43,51.70223298]
[1731483762595,4.9137,203.51,203.43,47.76973298]
[1731483762793,37.93843298,203.5,203.39,57.23943298]
[1731483763013,37.93843298,203.44,203.35,37.93843298]
[1731483763303,37.93843298,203.48,203.39,37.93843298]
[1731483763604,37.93843298,203.48,203.39,349.93843298]
[1731483763800,37.93843298,203.46,203.37,37.93843298]
[1731483764181,37.93843298,203.52,203.43,37.93843298]
[1731483764381,4.9125,203.56,203.45,37.93843298]
[1731483764382,37.93843298,203.54,203.45,37.93843298]
[1731483764993,37.93843298,203.52,203.45,37.93843298]
[1731483765181,37.93843298,203.5,203.43,37.93843298]
[1731483766100,37.93843298,203.48,203.39,61.84080698]
[1731483766303,42.85293298,203.48,203.4,3.9331]
[1731483766491,4.9145,203.48,203.41,37.93843298]
[1731483766886,4.9141,203.5,203.43,37.93843298]
[1731483767512,0.7114873,203.58,203.47,37.93843298]
[1731483767513,0.5114873,203.58,203.47,37.93843298]
[1731483767695,37.93843298,203.57,203.49,37.93843298]
[1731483767895,0.5114873,203.58,203.51,37.93843298]
[1731483768193,5.4236873,203.58,203.51,37.93843298]
[1731483768396,5.4236873,203.58,203.51,41.86933298]
[1731483768799,0.5114873,203.58,203.51,51.69683298]
[1731483769003,0.5114873,203.58,203.57,37.93843298]
[1731483769204,0.5114873,203.58,203.57,81.71531698]
[1731483769405,0.5114873,203.58,203.57,37.93843298]
[1731483770085,0.5114873,203.58,203.55,37.93843298]
[1731483770302,0.5114873,203.58,203.57,37.93843298]
[1731483770609,0.5114873,203.58,203.57,349.93843298]
[1731483770791,0.5114873,203.58,203.57,355.776884]
[1731483770989,0.5114873,203.58,203.57,81.71531698]
[1731483772090,0.5114873,203.58,203.57,85.64511698]
[1731483772609,4.9089,203.71,203.58,43.776884]
[1731483772797,4.9089,203.71,203.64,37.93843298]
[1731483772997,4.9089,203.71,203.58,43.776884]
[1731483772998,4.9085,203.73,203.68,37.93843298]
[1731483773387,4.9081,203.75,203.68,37.93843298]
[1731483773712,4.9081,203.75,203.65,23.776884]
[1731483773713,0.5114873,203.79,203.74,37.93843298]
[1731483773907,5.4185873,203.79,203.74,349.93843298]
[1731483774212,0.5114873,203.79,203.74,312.0]
[1731483774393,0.5114873,203.79,203.74,349.93843298]
[1731483774597,0.5114873,203.79,203.74,312.0]
[1731483775812,4.9072,203.78,203.68,23.776884]
[1731483775997,0.5114873,203.79,203.72,37.93843298]
[1731483776310,0.5114873,203.79,203.73,43.776884]
[1731483776490,0.5114873,203.79,203.74,37.93843298]
[1731483776892,0.5114873,203.79,203.75,23.776884]
[1731483777096,0.5114873,203.79,203.78,37.93843298]
[1731483777298,0.5114873,203.79,203.78,87.85211698]
[1731483778192,4.9045,203.9,203.79,57.516484]
[1731483778505,37.93843298,203.93,203.85,23.776884]
[1731483778700,37.93843298,203.93,203.88,312.0]
[1731483779102,37.93843298,204.0,203.92,37.93843298]
[1731483779314,4.9025,203.98,203.92,37.93843298]
[1731483779602,4.9025,203.98,203.85,23.876884]
[1731483779603,4.9025,203.98,203.91,23.776884]
[1731483780299,4.9025,203.98,203.9,37.93843298]
[1731483780496,37.93843298,203.96,203.88,37.93843298]
[1731483781322,37.93843298,204.04,203.95,37.93843298]
[1731483781720,4.9018,204.01,203.95,37.93843298]
[1731483782105,4.9018,204.01,203.91,33.584984]
[1731483782106,5.4137873,203.99,203.91,61.71531698]
[1731483782306,5.4137873,203.99,203.86,9.8104]
[1731483782307,37.93843298,203.98,203.89,37.93843298]
[1731483783325,37.93843298,203.96,203.87,37.93843298]
[1731483783501,37.93843298,203.94,203.85,37.93843298]
[1731483783818,4.9031,203.95,203.87,37.93843298]
[1731483784126,37.93843298,203.94,203.85,37.93843298]
[1731483784622,0.5114873,203.99,203.82,13.7375]
[1731483784623,37.93843298,203.98,203.89,37.93843298]
[1731483784811,0.5114873,203.99,203.91,37.93843298]
[1731483785224,0.5114873,203.99,203.95,37.93843298]
[1731483785398,0.5114873,203.99,203.97,37.93843298]
[1731483785607,0.5114873,203.99,203.95,37.93843298]
[1731483785801,0.5114873,203.99,203.92,6.5266]
[1731483786006,37.93843298,203.98,203.9,37.93843298]
[1731483786620,37.93843298,203.98,203.9,349.93843298]
[1731483786808,0.5114873,203.99,203.94,37.93843298]
[1731483787538,4.9024,203.98,203.92,37.93843298]
[1731483788930,37.93843298,203.96,203.87,20.0]
[1731483789103,42.84083298,203.98,203.89,23.776884]
[1731483789304,42.84083298,203.98,203.88,37.93843298]
[1731483790008,42.84083298,203.98,203.88,349.93843298]
[1731483790311,42.84083298,203.98,203.9,37.93843298]
[1731483791326,0.5114873,203.99,203.94,37.93843298]
[1731483791519,5.4138873,203.99,203.94,37.93843298]
[1731483792204,5.4138873,203.99,203.92,37.93843298]
[1731483793628,37.93843298,203.98,203.9,37.93843298]
[1731483794005,0.5114873,203.99,203.9,54.49633298]
[1731483794204,0.5114873,203.99,203.98,23.776884]
[1731483794402,0.5114873,203.99,203.98,315.9219]
[1731483794709,0.5114873,203.99,203.98,353.86033298]
[1731483794924,0.5114873,203.99,203.98,338.95316234]
[1731483795222,0.5114873,203.99,203.98,312.0]
[1731483795404,0.5114873,203.99,203.98,335.03126234]
[1731483797523,0.5114873,203.99,203.98,358.80814634]
[1731483799022,0.02,203.99,203.98,407.94400868]
[1731483799621,0.02,203.99,203.98,407.84400868]
[1731483799816,0.02,203.99,203.98,384.81274634]
[1731483803214,0.02,203.99,203.98,341.03586234]
[1731483803425,0.02,203.99,203.98,335.03126234]
[1731483803739,0.02,203.99,203.98,23.03126234]
[1731483804031,0.02,203.99,203.92,23.03126234]
[1731483804213,0.02,203.99,203.91,9.8079]
[1731483804214,0.02,203.99,203.94,23.03126234]
[1731483804925,0.02,203.99,203.85,0.2]
[1731483804926,23.03126234,203.96,203.83,3.9247]
[1731483805237,0.02,203.99,203.92,23.03126234]
[1731483805238,4.9223,203.99,203.92,23.03126234]
[1731483805621,0.02,203.99,203.92,23.03126234]
[1731483805817,4.9222,203.99,203.92,23.03126234]
[1731483806141,0.02,203.99,203.92,23.03126234]
[1731483806739,4.9024,203.98,203.92,335.03126234]
[1731483807045,4.9024,203.98,203.84,23.77329]
[1731483807046,0.02,203.99,203.96,23.03126234]
[1731483807352,0.02,203.99,203.98,23.03126234]
[1731483807942,0.02,203.99,203.96,23.03126234]
[1731483808453,0.02,203.99,203.95,9.8063]
[1731483808647,0.02,203.99,203.93,23.03126234]
[1731483809038,0.02,203.99,203.94,3.9227]
[1731483809243,0.02,203.99,203.93,23.03126234]
[1731483809433,23.03126234,203.97,203.9,13.7315]
[1731483809638,23.03126234,203.95,203.88,23.03126234]
[1731483809844,23.03126234,203.95,203.88,36.76456234]
[1731483810039,23.03126234,203.95,203.89,312.0]
[1731483810454,23.03126234,203.93,203.86,26.95536234]
[1731483810654,23.03126234,203.93,203.86,3.9241]
[1731483810851,23.03126234,203.95,203.86,26.95536234]
[1731483811359,23.03126234,203.93,203.86,36.76596234]
[1731483811535,23.03126234,203.93,203.86,32.84186234]
[1731483811737,23.03126234,203.91,203.86,9.8106]
[1731483812060,27.93446234,203.95,203.86,36.76606234]
[1731483813054,34.5925,203.99,203.86,36.76606234]
[1731483813055,23.03126234,203.93,203.86,36.76606234]
[1731483813234,23.03126234,203.93,203.86,13.7348]
[1731483813430,23.03126234,203.91,203.86,312.0]
[1731483814455,23.03126234,203.97,203.89,23.03126234]
[1731483815449,4.9029,203.96,203.89,26.95486234]
[1731483815759,23.03126234,203.91,203.84,3.9244]
[1731483816136,23.03126234,203.95,203.87,23.03126234]
[1731483816336,23.03126234,203.93,203.85,23.03126234]
[1731483817436,23.03126234,203.93,203.85,335.03126234]
[1731483817661,23.03126234,203.89,203.8,23.03126234]
[1731483818257,23.03126234,203.84,203.77,3.9259]
[1731483818963,23.03126234,203.84,203.77,13.7408]
[1731483819172,23.03126234,203.82,203.73,23.03126234]
[1731483819462,23.03126234,203.82,203.73,26.95796234]
[1731483819639,23.03126234,203.82,203.73,36.77486234]
[1731483820262,23.03126234,203.84,203.75,23.03126234]
[1731483820465,23.03126234,203.84,203.73,13.7436]
[1731483820466,23.03126234,203.84,203.77,23.03126234]
[1731483820641,23.03126234,203.86,203.77,335.03126234]
[1731483821447,23.03126234,203.88,203.79,23.03126234]
[1731483822177,23.03126234,203.86,203.79,23.03126234]
[1731483822370,23.03126234,203.86,203.78,9.8145]
[1731483823463,23.03126234,203.86,203.78,13.7403]
[1731483823957,23.03126234,203.88,203.79,23.03126234]
[1731483824260,23.03126234,203.9,203.83,23.03126234]
[1731483824465,0.1,203.98,203.85,23.03126234]
[1731483824466,23.03126234,203.94,203.85,23.03126234]
[1731483825359,23.03126234,203.94,203.8,23.03126234]
[1731483825360,23.03126234,203.94,203.87,23.03126234]
[1731483825762,23.03126234,203.98,203.89,23.03126234]
[1731483826085,23.03126234,203.98,203.91,23.03126234]
[1731483826881,22.03126234,203.98,203.91,23.03126234]
[1731483827277,22.03126234,203.98,203.92,4.4134]
[1731483827869,21.0651,203.99,203.93,23.03126234]
[1731483827870,0.02,203.99,203.93,23.03126234]
[1731483828464,23.03126234,203.98,203.92,323.0337]
[1731483828676,23.03126234,203.98,203.92,327.4471]
[1731483829075,23.03126234,203.96,203.88,11.0357]
[1731483829376,23.03126234,203.98,203.89,23.03126234]
[1731483829569,23.03126234,203.96,203.89,23.03126234]
[1731483830275,23.03126234,203.96,203.88,15.45]
[1731483831381,23.03126234,203.96,203.89,23.03126234]
[1731483832077,23.03126234,203.96,203.89,335.03126234]
[1731483832273,23.03126234,203.98,203.89,335.03126234]
[1731483832473,23.03126234,203.98,203.92,15.4471]
[1731483832673,0.02,203.99,203.92,15.4471]
[1731483833390,0.02,203.99,203.93,23.03126234]
[1731483833868,0.02,203.99,203.95,23.03126234]
[1731483834069,0.02,203.99,203.97,23.03126234]
[1731483834689,0.02,203.99,203.98,4.4121]
[1731483835591,0.02,203.99,203.98,316.4121]
[1731483835970,0.02,203.99,203.98,312.0]
[1731483836182,0.02,203.99,203.97,15.4432]
[1731483837090,0.02,203.99,203.97,11.0308]
[1731483837301,0.02,203.99,203.94,27.44406234]
[1731483837598,0.02,203.99,203.94,38.47666234]
[1731483839188,0.02,203.99,203.94,350.47666234]
[1731483839798,0.02,203.99,203.96,23.03126234]
[1731483840101,0.02,203.99,203.98,23.03126234]
[1731483840490,22.0974,204.12,203.98,46.80814634]
[1731483840827,23.03126234,204.1,204.03,23.03126234]
[1731483841097,4.8979,204.17,204.07,23.03126234]
[1731483841283,23.03126234,204.17,204.11,23.03126234]
[1731483841483,23.03126234,204.19,204.11,23.03126234]
[1731483841790,23.03126234,204.17,204.09,23.03126234]
[1731483842190,23.03126234,204.17,204.04,0.1]
[1731483842191,23.03126234,204.19,204.11,23.03126234]
[1731483842392,0.5114873,204.2,204.13,23.03126234]
[1731483842599,0.5114873,204.2,204.13,27.43996234]
[1731483842890,0.5114873,204.2,204.14,312.0]
[1731483843780,0.5114873,204.2,204.16,23.03126234]
[1731483843973,0.5114873,204.2,204.18,23.03126234]
[1731483844601,0.5114873,204.2,204.19,4.4076]
[1731483845201,0.5114873,204.2,204.19,28.184484]
[1731483846492,0.5114873,204.2,204.19,27.43886234]
[1731483846687,0.5114873,204.2,204.19,363.21574634]
[1731483847093,0.5114873,204.2,204.19,339.43886234]
[1731483847288,0.5114873,204.2,204.19,335.03126234]
[1731483848411,0.5114873,204.2,204.19,312.0]
[1731483848584,0.5114873,204.2,204.18,11.0196]
[1731483848987,0.5114873,204.2,204.18,38.45866234]
[1731483850709,7.65286528,204.37,204.26,0.1]
[1731483850905,23.03126234,204.29,204.26,0.1]
[1731483851505,23.03126234,204.29,204.24,0.1]
[1731483852323,23.03126234,204.27,204.24,0.1]
[1731483853718,23.03126234,204.27,204.21,0.1]
[1731483853913,23.03126234,204.27,204.23,0.1]
[1731483854714,4.8952,204.28,204.23,0.1]
[1731483854914,23.03126234,204.31,204.26,0.1]
[1731483855996,4.8934,204.36,204.31,0.1]
[1731483856200,4.8929,204.38,204.33,23.13126234]
[1731483856602,0.5114873,204.4,204.34,23.03126234]
[1731483856806,0.5114873,204.4,204.36,23.03126234]
[1731483857405,0.5114873,204.4,204.39,23.13126234]
[1731483857606,0.5114873,204.4,204.39,23.23126234]
[1731483857925,0.5114873,204.4,204.39,358.26252468]
[1731483858103,0.5114873,204.4,204.39,335.23126234]
[1731483858698,0.5114873,204.4,204.39,339.63456234]
[1731483859301,0.5114873,204.4,204.39,335.23126234]
[1731483859507,0.5114873,204.4,204.39,335.13126234]
[1731483859711,0.5114873,204.4,204.39,312.0]
[1731483859908,0.5114873,204.4,204.37,0.1]
[1731483860112,5.4038873,204.4,204.33,23.03126234]
[1731483860400,23.03126234,204.4,204.33,23.13126234]
[1731483860919,23.03126234,204.4,204.35,0.1]
[1731483861119,23.03126234,204.37,204.29,11.1135]
[1731483861422,23.03126234,204.39,204.32,0.1]
[1731483861600,23.03126234,204.39,204.34,0.1]
[1731483862007,23.03126234,204.41,204.34,0.2]
[1731483863017,27.92346234,204.41,204.34,0.2]
[1731483863218,23.03126234,204.43,204.36,0.1]
[1731483863407,27.92306234,204.43,204.38,0.1]
[1731483863917,23.03126234,204.45,204.38,0.1]
[1731483865312,4.8915,204.44,204.38,0.1]
[1731483865807,23.03126234,204.41,204.38,0.1]
[1731483866331,23.03126234,204.41,204.36,0.1]
[1731483867117,12.2262,204.48,204.32,0.2]
[1731483867118,23.03126234,204.37,204.32,0.2]
[1731483867318,23.03126234,204.37,204.32,0.1]
[1731483867821,23.03126234,204.37,204.33,0.1]
[1731483868018,23.03126234,204.35,204.26,0.1]
[1731483868218,23.03126234,204.35,204.3,0.1]
[1731483868412,23.03126234,204.4,204.36,0.1]
[1731483869439,23.03126234,204.42,204.36,0.1]
[1731483870128,23.03126234,204.39,204.34,0.1]
[1731483870511,23.03126234,204.39,204.36,0.1]
[1731483870839,23.03126234,204.4,204.36,0.1]
[1731483871330,23.03126234,204.45,204.39,0.1]
[1731483872308,23.03126234,204.43,204.36,0.2]
[1731483872613,23.03126234,204.4,204.34,0.2]
[1731483872816,23.03126234,204.4,204.31,15.417]
[1731483872817,23.03126234,204.43,204.36,23.23126234]
[1731483873018,4.8909,204.46,204.39,0.1]
[1731483873019,23.03126234,204.44,204.39,0.1]
[1731483873735,27.92276234,204.44,204.39,0.1]
[1731483873935,23.03126234,204.43,204.37,0.1]
[1731483874430,23.03126234,204.42,204.37,0.1]
[1731483874635,23.03126234,204.41,204.35,0.1]
[1731483874840,23.03126234,204.36,204.3,0.1]
[1731483875026,23.03126234,204.33,204.29,0.1]
[1731483875634,23.03126234,204.33,204.3,0.1]
[1731483875836,23.03126234,204.33,204.29,0.1]
[1731483876039,23.03126234,204.31,204.24,0.1]
[1731483876209,4.8941,204.33,204.24,0.1]
[1731483876210,27.92536234,204.33,204.29,0.1]
[1731483876614,23.03126234,204.32,204.29,0.1]
[1731483877237,23.03126234,204.32,204.29,0.2]
[1731483877830,15.5156,204.38,204.33,0.1]
[1731483877831,23.03126234,204.38,204.33,0.1]
[1731483878242,23.03126234,204.41,204.36,0.1]
[1731483878430,23.03126234,204.43,204.39,0.1]
[1731483878620,4.8905,204.48,204.41,0.2]
[1731483878822,16.0823,204.51,204.36,6.2325]
[1731483878823,23.03126234,204.47,204.43,0.1]
[1731483879022,4.8899,204.5,204.41,0.1]
[1731483879023,23.03126234,204.45,204.41,0.1]
[1731483880335,23.03126234,204.46,204.41,0.1]
[1731483881245,23.03126234,204.47,204.41,0.2]
[1731483881429,23.03126234,204.47,204.4,4.403]
[1731483881430,23.03126234,204.51,204.45,0.2]
[1731483881734,23.03126234,204.53,204.47,0.1]
[1731483882147,23.03126234,204.53,204.48,0.1]
[1731483882449,23.03126234,204.54,204.49,0.1]
[1731483882628,23.03126234,204.55,204.49,0.1]
[1731483883433,27.92006234,204.55,204.49,0.1]
[1731483884037,23.03126234,204.53,204.49,0.1]
[1731483884542,23.03126234,204.53,204.49,312.1]
[1731483885622,27.92056234,204.53,204.49,312.1]
[1731483886238,27.92056234,204.53,204.47,0.1]
[1731483886239,23.03126234,204.51,204.47,0.1]
[1731483886559,23.03126234,204.52,204.45,4.502]
[1731483886729,23.03126234,204.52,204.49,0.1]
[1731483887044,42.89493785,204.6,204.54,0.1]
[1731483887045,4.8878,204.59,204.54,0.1]
[1731483887233,23.54274964,204.61,204.54,0.2]
[1731483887433,23.54274964,204.61,204.56,0.1]
[1731483888341,28.43014964,204.61,204.56,0.1]
[1731483888933,28.43014964,204.61,204.57,0.1]
[1731483889130,0.5114873,204.61,204.57,0.1]
[1731483889347,0.5114873,204.61,204.58,0.1]
[1731483889530,0.5114873,204.61,204.6,0.2]
[1731483890255,5.3989873,204.61,204.58,0.1]
[1731483890429,0.5114873,204.61,204.58,0.1]
[1731483890628,0.5114873,204.61,204.58,4.5991]
[1731483890830,0.5114873,204.61,204.6,0.2]
[1731483891628,0.5114873,204.61,204.6,4.5988]
[1731483892247,0.5114873,204.61,204.6,27.63006234]
[1731483892655,0.5114873,204.61,204.6,339.63006234]
[1731483893027,0.5114873,204.61,204.6,335.23126234]
[1731483893382,0.5114873,204.61,204.6,23.23126234]
[1731483893551,23.54274964,204.61,204.55,0.1]
[1731483893754,23.03126234,204.56,204.55,0.1]
[1731483893945,23.03126234,204.58,204.55,0.1]
[1731483894150,23.03126234,204.58,204.54,0.1]
[1731483894339,23.03126234,204.58,204.55,0.1]
[1731483894545,23.03126234,204.58,204.56,0.1]
[1731483895256,0.5114873,204.61,204.58,0.1]
[1731483895466,0.5114873,204.61,204.6,0.2]
[1731483896251,0.5114873,204.61,204.6,312.2]
[1731483896765,0.5114873,204.61,204.6,335.23126234]
[1731483897837,0.5114873,204.61,204.58,23.13126234]
[1731483898044,23.03126234,204.59,204.58,0.1]
[1731483898472,0.5114873,204.61,204.58,0.1]
[1731483898757,0.5114873,204.61,204.6,0.1]
[1731483900147,0.5114873,204.61,204.56,11.099]
[1731483900464,5.3987873,204.61,204.57,0.1]
[1731483900767,27.91896234,204.6,204.57,0.1]
[1731483900952,0.5114873,204.61,204.57,0.1]
[1731483901146,0.5114873,204.61,204.6,0.2]
[1731483903365,0.5114873,204.61,204.6,4.5988]
[1731483903863,28.43014964,204.61,204.52,0.1]
[1731483904163,23.03126234,204.58,204.51,0.1]
[1731483904365,5.3988873,204.61,204.57,0.1]
[1731483904366,23.03126234,204.6,204.57,0.1]
[1731483904548,0.5114873,204.61,204.59,0.1]
[1731483904748,0.5114873,204.61,204.6,0.1]
[1731483905661,0.5114873,204.61,204.59,0.1]
[1731483906071,0.5114873,204.61,204.6,0.1]
[1731483907265,0.5114873,204.61,204.6,4.4988]
[1731483907651,0.5114873,204.61,204.6,316.4988]
[1731483907861,0.5114873,204.61,204.6,4.3988]
[1731483908167,0.5114873,204.61,204.6,0.1]
[1731483908675,0.5114873,204.61,204.59,6.2817]
[1731483908854,0.5114873,204.61,204.6,0.1]
[1731483910951,0.5114873,204.61,204.6,312.1]
[1731483912955,0.5114873,204.61,204.6,0.1]
[1731483914562,0.5114873,204.61,204.6,20.22549]
[1731483914766,23.03126234,204.74,204.6,67.03363634]
[1731483914967,23.03126234,204.74,204.69,0.2]
[1731483915266,23.03126234,204.74,204.71,0.1]
[1731483915468,23.03126234,204.78,204.74,0.1]
[1731483915672,23.03126234,204.78,204.73,0.1]
[1731483915980,0.5114873,204.81,204.73,0.1]
[1731483915981,23.03126234,204.76,204.73,0.1]
[1731483916571,23.03126234,204.76,204.72,0.1]
[1731483916572,23.03126234,204.78,204.76,0.1]
[1731483916776,23.03126234,204.8,204.77,0.1]
[1731483916969,0.5114873,204.81,204.77,0.1]
[1731483917174,0.5114873,204.81,204.8,0.2]
[1731483918966,0.5114873,204.81,204.8,312.2]
[1731483920579,0.5114873,204.81,204.8,0.2]
[1731483922185,23.54274964,204.81,204.8,0.2]
[1731483922382,0.5114873,204.81,204.8,0.2]
[1731483922560,0.5114873,204.81,204.8,0.1]
[1731483922766,0.5114873,204.81,204.8,0.2]
[1731483927371,0.5114873,204.81,204.8,0.1]
[1731483928491,0.5114873,204.81,204.78,0.1]
[1731483928672,23.54274964,204.81,204.78,0.1]
[1731483928877,23.03126234,204.79,204.78,0.1]
[1731483929074,23.54274964,204.81,204.78,0.1]
[1731483929587,23.54274964,204.81,204.79,0.1]
[1731483930083,23.54274964,204.81,204.78,0.1]
[1731483930793,0.5114873,204.81,204.8,0.2]
[1731483931891,0.5114873,204.81,204.8,312.2]
[1731483932791,0.5114873,204.81,204.8,0.1]
[1731483932990,0.5114873,204.81,204.76,0.2]
[1731483933192,23.03126234,204.8,204.78,0.1]
[1731483933581,0.5114873,204.81,204.8,0.1]
[1731483933784,0.5114873,204.81,204.76,0.2]
[1731483933990,23.03126234,204.8,204.76,0.1]
[1731483934604,27.91426234,204.8,204.74,0.2]
[1731483934812,27.91426234,204.8,204.78,0.1]
[1731483935301,27.91426234,204.8,204.72,11.0904]
[1731483935482,27.91426234,204.8,204.76,0.1]
[1731483935679,23.03126234,204.78,204.75,0.1]
[1731483935887,23.03126234,204.78,204.73,0.1]
[1731483936401,23.03126234,204.8,204.77,0.1]
[1731483936584,27.91406234,204.8,204.77,0.1]
[1731483937104,23.03126234,204.8,204.77,0.1]
[1731483937606,0.5114873,204.81,204.8,0.1]
[1731483938997,0.5114873,204.81,204.79,0.1]
[1731483939891,0.5114873,204.81,204.79,0.2]
[1731483940090,0.5114873,204.81,204.77,0.2]
[1731483940399,4.8828,204.8,204.74,0.1]
[1731483940591,27.91406234,204.8,204.74,0.1]
[1731483940990,27.91406234,204.8,204.73,0.1]
[1731483941193,23.03126234,204.78,204.73,0.1]
[1731483941387,23.03126234,204.76,204.73,0.1]
[1731483941591,23.03126234,204.74,204.73,0.1]
[1731483941802,23.03126234,204.74,204.71,0.1]
[1731483941982,23.03126234,204.74,204.7,0.1]
[1731483942594,23.03126234,204.74,204.71,0.1]
[1731483943204,23.03126234,204.74,204.73,0.1]
[1731483943411,23.03126234,204.76,204.73,0.1]
[1731483943620,23.03126234,204.78,204.75,0.1]
[1731483944215,23.03126234,204.76,204.73,0.1]
[1731483944409,23.03126234,204.74,204.68,0.1]
[1731483944605,23.03126234,204.72,204.69,0.1]
[1731483945118,23.03126234,204.76,204.73,0.1]
[1731483945321,23.03126234,204.74,204.69,0.2]
[1731483945617,23.03126234,204.74,204.69,0.1]
[1731483945943,23.03126234,204.74,204.72,0.1]
[1731483946418,23.03126234,204.74,204.67,0.1]
[1731483946716,23.03126234,204.7,204.68,0.1]
[1731483947100,23.03126234,204.74,204.71,0.1]
[1731483947430,23.03126234,204.74,204.72,0.1]
[1731483947714,23.03126234,204.74,204.7,0.1]
[1731483948024,23.03126234,204.74,204.73,0.1]
[1731483948318,23.03126234,204.74,204.73,0.2]
[1731483948530,23.03126234,204.76,204.75,0.1]
[1731483949921,23.03126234,204.78,204.77,0.1]
[1731483950127,5.3940873,204.81,204.77,0.2]
[1731483950307,23.03126234,204.8,204.79,0.1]
[1731483951106,0.5114873,204.81,204.79,0.2]
[1731483951630,0.5114873,204.81,204.79,0.1]
[1731483951838,23.03126234,204.8,204.79,0.1]
[1731483952535,23.03126234,204.8,204.73,10.9897]
[1731483952536,23.03126234,204.8,204.74,0.1]
[1731483952738,23.03126234,204.76,204.72,0.1]
[1731483952940,23.03126234,204.74,204.72,0.1]
[1731483953227,23.03126234,204.74,204.65,10.9942]
[1731483953228,23.03126234,204.74,204.68,0.1]
[1731483953415,23.03126234,204.7,204.68,0.1]
[1731483953616,23.03126234,204.7,204.69,0.1]
[1731483954036,23.03126234,204.7,204.66,0.2]
[1731483954221,4.8844,204.73,204.64,0.2]
[1731483954222,23.03126234,204.68,204.64,0.2]
[1731483954547,23.03126234,204.66,204.64,0.2]
[1731483955041,23.03126234,204.66,204.64,0.1]
[1731483955225,23.03126234,204.66,204.6,0.1]
[1731483955226,23.03126234,204.66,204.63,0.1]
[1731483955626,17.0956,204.73,204.63,0.1]
[1731483955627,4.8844,204.73,204.63,4.4981]
[1731483955827,23.03126234,204.7,204.68,0.1]
[1731483956435,23.03126234,204.7,204.62,23.03126234]
[1731483956436,23.03126234,204.7,204.64,0.1]
[1731483956638,23.03126234,204.7,204.62,0.1]
[1731483956639,23.03126234,204.66,204.63,0.1]
[1731483956932,23.03126234,204.64,204.57,0.1]
[1731483957140,23.03126234,204.58,204.57,0.1]
[1731483957524,23.03126234,204.6,204.57,0.1]
[1731483957839,23.03126234,204.6,204.57,0.2]
[1731483960531,23.03126234,204.58,204.53,0.2]
[1731483960728,23.03126234,204.56,204.51,6.7241]
[1731483961043,23.03126234,204.56,204.54,0.1]
[1731483961248,23.03126234,204.56,204.54,0.2]
[1731483961736,23.03126234,204.6,204.57,0.1]
[1731483961950,23.03126234,204.58,204.53,0.1]
[1731483962125,23.03126234,204.55,204.51,0.1]
[1731483962319,23.03126234,204.53,204.51,0.1]
[1731483962742,4.8872,204.62,204.57,0.2]
[1731483962944,16.5741,204.64,204.52,27.43166234]
[1731483962945,23.03126234,204.64,204.62,0.2]
[1731483963241,20.7445,204.7,204.6,0.2]
[1731483963461,23.03126234,204.63,204.6,0.1]
[1731483963622,23.03126234,204.61,204.58,0.1]
[1731483964025,55.98866234,204.7,204.58,0.1]
[1731483964026,23.03126234,204.59,204.58,0.1]
[1731483964235,23.03126234,204.59,204.58,0.2]
[1731483964432,23.03126234,204.63,204.62,0.1]
[1731483965165,27.91816234,204.63,204.59,0.1]
[1731483965331,23.03126234,204.61,204.59,0.1]
[1731483965529,23.03126234,204.61,204.3,23.03126234]
[1731483965530,23.03126234,204.61,204.55,0.1]
[1731483965746,23.03126234,204.57,204.5,0.2]
[1731483965934,23.03126234,204.6,204.46,0.1]
[1731483965935,23.03126234,204.51,204.46,0.1]
[1731483966140,23.03126234,204.48,204.44,0.2]
[1731483966454,23.03126234,204.46,204.44,0.2]
[1731483967042,23.03126234,204.46,204.42,0.2]
[1731483967252,23.03126234,204.43,204.42,0.1]
[1731483967454,23.03126234,204.45,204.44,0.2]
[1731483967632,4.8897,204.51,204.44,0.1]
[1731483967836,23.776884,204.57,204.48,0.1]